fUSD/lending_fUSD_20240105
["ID","MTS","AMOUNT","RATE_DAILY","PERIOD"]
[310299456,1704463980609,-803.57,0.00034438,3]
[310299457,1704463980619,-889.76,0.00034438,3]
[310299458,1704463980629,-610.92,0.00034438,3]
[310299459,1704463980640,-605.09,0.00034438,3]
[310299460,1704463980652,-571.57,0.00034438,3]
[310299461,1704463980662,-500.0,0.00034438,3]
[310299462,1704463980672,-456.40105,0.00034488,2]
[310299463,1704463980681,-157.18,0.000345,2]
[310299464,1704463980691,-157.18,0.000345,2]
[310299465,1704463980701,-157.18,0.000345,2]
[310299466,1704463980710,-157.18,0.000345,2]
[310299467,1704463980719,-157.18,0.000345,2]
[310299468,1704463980729,-157.18,0.000345,2]
[310299469,1704463980739,-157.18,0.000345,2]
[310299470,1704463980748,-157.18,0.000345,2]
[310299471,1704463980758,-1629.878142,0.0003452,2]
[310299472,1704463980766,-16544.141413,0.0003452,2]
[310299473,1704463980776,-578.99,0.0003452,3]
[310299474,1704463980785,-570.77,0.0003452,3]
[310299475,1704463980793,-500.0,0.0003452,3]
[310299476,1704463980803,-500.0,0.0003452,3]
[310299477,1704463980813,-964.18,0.0003452,3]
[310299478,1704463980824,-317.64694737,0.0003452,3]
[310299479,1704463980834,-591.29559728,0.0003452,3]
[310299480,1704463980843,-489.79320744,0.0003452,3]
[310299481,1704463980854,-500.0,0.0003452,3]
[310299482,1704463980870,-500.0,0.0003452,3]
[310299483,1704463980892,-776.92,0.0003452,3]
[310299484,1704463980909,-500.0,0.0003452,3]
[310299485,1704463980930,-500.0,0.0003452,3]
[310299486,1704463980947,-500.0,0.0003452,3]
[310299487,1704463980966,-193.67367129,0.0003452,3]
[310299488,1704463980985,-754.78,0.0003452,3]
[310299489,1704463981004,-608.57,0.0003452,3]
[310299490,1704463981024,-574.49,0.0003452,2]
[310299491,1704463981043,-597.18,0.0003452,3]
[310299492,1704463981065,-535.87,0.0003452,3]
[310299493,1704463981080,-500.0,0.0003452,3]
[310299494,1704463981098,-847.71,0.0003452,3]
[310299495,1704463981116,-500.0,0.0003452,2]
[310299496,1704463981130,-500.0,0.0003452,3]
[310299497,1704463981149,-500.0,0.0003452,3]
[310299498,1704463981164,-939.06,0.0003452,3]
[310299499,1704463981180,-500.0,0.0003452,3]
[310299500,1704463981196,-617.42,0.0003452,3]
[310299501,1704463981210,-763.35,0.0003452,3]
[310299502,1704463981224,-500.0,0.0003452,3]
[310299503,1704463981240,-581.06,0.0003452,3]
[310299504,1704463981255,-533.25,0.0003452,3]
[310299505,1704463981273,-1032.57,0.0003452,3]
[310299506,1704463981288,-500.0,0.0003452,3]
[310299507,1704463981303,-668.81,0.0003452,3]
[310299508,1704463981319,-897.42,0.0003452,3]
[310299509,1704463981334,-610.9,0.0003452,3]
[310299510,1704463981349,-542.23,0.0003452,3]
[310299511,1704463981366,-500.0,0.0003452,3]
[310299512,1704463981383,-977.28,0.0003452,3]
[310299513,1704463981398,-500.0,0.0003452,3]
[310299514,1704463981413,-564.72,0.0003452,3]
[310299515,1704463981427,-623.13,0.0003452,3]
[310299516,1704463981442,-500.0,0.0003452,3]
[310299517,1704463981458,-660.13,0.0003452,3]
[310299518,1704463981473,-1107.9,0.0003452,3]
[310299519,1704463981490,-500.0,0.0003452,3]
[310299520,1704463981506,-500.0,0.0003452,3]
[310299521,1704463981521,-500.0,0.0003452,3]
[310299522,1704463981536,-500.0,0.0003452,3]
[310299523,1704463981551,-612.01734445,0.0003452,3]
[310299524,1704463981565,-534.02,0.0003452,3]
[310299525,1704463981581,-1001.59,0.0003452,3]
[310299526,1704463981597,-500.0,0.0003452,3]
[310299527,1704463981612,-577.73,0.0003452,3]
[310299528,1704463981628,-500.0,0.0003452,3]
[310299529,1704463981645,-515.35,0.0003452,3]
[310299530,1704463981660,-528.01,0.0003452,3]
[310299531,1704463981675,-500.0,0.0003452,3]
[310299532,1704463981691,-609.91,0.0003452,3]
[310299533,1704463981707,-3164.14,0.0003452,3]
[310299534,1704463981723,-767.51,0.0003452,3]
[310299535,1704463981740,-572.23,0.0003452,3]
[310299536,1704463981754,-1043.05,0.0003452,3]
[310299537,1704463981768,-663.96,0.0003452,3]
[310299538,1704463981783,-500.0,0.0003452,3]
[310299539,1704463981798,-969.42,0.0003452,3]
[310299540,1704463981815,-500.0,0.0003452,3]
[310299541,1704463981830,-951.95,0.0003452,3]
[310299542,1704463981845,-500.0,0.0003452,3]
[310299543,1704463981860,-500.0,0.0003452,3]
[310299544,1704463981876,-795.33,0.0003452,3]
[310299545,1704463981891,-585.0,0.0003452,3]
[310299546,1704463981905,-500.0,0.0003452,3]
[310299547,1704463981919,-500.0,0.0003452,3]
[310299548,1704463981934,-535.25,0.0003452,3]
[310299549,1704463981950,-573.11,0.0003452,3]
[310299550,1704463981965,-1278.92,0.0003452,3]
[310299551,1704463981981,-388.42598798,0.0003452,3]
[310299552,1704463981995,-1115.46,0.0003452,3]
[310299553,1704463982011,-522.9,0.0003452,3]
[310299554,1704463982025,-503.15,0.0003452,3]
[310299555,1704463982040,-500.0,0.0003452,3]
[310299556,1704463982055,-500.0,0.0003452,3]
[310299557,1704463982069,-898.64,0.0003452,3]
[310299558,1704463982084,-2197.46,0.0003452,3]
[310299559,1704463982101,-1050.63,0.0003452,3]
[310299560,1704463982115,-500.0,0.0003452,2]
[310299561,1704463982130,-512.25,0.0003452,3]
[310299562,1704463982145,-652.42,0.0003452,3]
[310299563,1704463982161,-500.96,0.0003452,3]
[310299564,1704463982176,-594.88814986,0.0003452,3]
[310299565,1704463982191,-500.0,0.0003452,3]
[310299566,1704463982205,-737.52,0.0003452,3]
[310299567,1704463982219,-500.0,0.0003452,3]
[310299568,1704463982235,-500.0,0.0003452,3]
[310299569,1704463982249,-1408.67,0.0003452,3]
[310299570,1704463982264,-500.0,0.0003452,3]
[310299571,1704463982279,-519.09,0.0003452,3]
[310299572,1704463982294,-500.0,0.0003452,3]
[310299573,1704463982309,-500.0,0.0003452,3]
[310299574,1704463982325,-1017.17,0.0003452,3]
[310299575,1704463982339,-500.0,0.0003452,3]
[310299576,1704463982355,-405.08413812,0.0003452,3]
[310299577,1704463982370,-1228.15,0.0003452,3]
[310299578,1704463982385,-500.0,0.0003452,3]
[310299579,1704463982401,-1193.22,0.0003452,3]
[310299580,1704463982416,-1709.82,0.0003452,3]
[310299581,1704463982431,-500.0,0.0003452,3]
[310299582,1704463982447,-521.26,0.0003452,3]
[310299583,1704463982462,-1009.32,0.0003452,3]
[310299584,1704463982477,-769.11,0.0003452,3]
[310299585,1704463982492,-500.0,0.0003452,3]
[310299586,1704463982506,-952.84,0.0003452,3]
[310299587,1704463982520,-500.0,0.0003452,3]
[310299588,1704463982537,-634.11,0.0003452,3]
[310299589,1704463982553,-1188.9,0.0003452,3]
[310299590,1704463982567,-558.13,0.0003452,3]
[310299591,1704463982582,-773.34,0.0003452,3]
[310299592,1704463982600,-881.16,0.0003452,3]
[310299593,1704463982614,-500.0,0.0003452,3]
[310299594,1704463982629,-500.0,0.0003452,3]
[310299595,1704463982643,-1431.77,0.0003452,3]
[310299596,1704463982657,-798.14,0.0003452,3]
[310299597,1704463982672,-500.0,0.0003452,3]
[310299598,1704463982685,-2061.68,0.0003452,3]
[310299599,1704463982700,-909.7,0.0003452,3]
[310299600,1704463982714,-500.0,0.0003452,3]
[310299601,1704463982728,-1481.56,0.0003452,3]
[310299602,1704463982750,-1575.41,0.0003452,3]
[310299603,1704463982769,-500.39,0.0003452,3]
[310299604,1704463982787,-982.39,0.0003452,3]
[310299605,1704463982804,-500.0,0.0003452,3]
[310299606,1704463982824,-500.0,0.0003452,3]
[310299607,1704463982844,-616.4,0.0003452,3]
[310299608,1704463982861,-656.28,0.0003452,3]
[310299609,1704463982878,-615.45,0.0003452,3]
[310299610,1704463982893,-815.67,0.0003452,3]
[310299611,1704463982911,-855.97,0.0003452,3]
[310299612,1704463982927,-914.92,0.0003452,3]
[310299613,1704463982943,-759.49,0.0003452,3]
[310299614,1704463982960,-500.0,0.0003452,3]
[310299615,1704463982975,-612.52,0.0003452,3]
[310299616,1704463982992,-638.72,0.0003452,3]
[310299617,1704463983008,-500.0,0.0003452,3]
[310299618,1704463983025,-779.76,0.0003452,3]
[310299619,1704463983041,-1184.83,0.0003452,3]
[310299620,1704463983056,-1087.44,0.0003452,3]
[310299621,1704463983072,-547.36,0.0003452,3]
[310299622,1704463983087,-500.0,0.0003452,3]
[310299623,1704463983102,-908.56,0.0003452,3]
[310299624,1704463983116,-5038.11,0.0003452,3]
[310299625,1704463983130,-884.22,0.0003452,3]
[310299626,1704463983146,-880.69,0.0003452,3]
[310299627,1704463983160,-500.0,0.0003452,3]
[310299628,1704463983176,-828.3,0.0003452,3]
[310299629,1704463983191,-280.7779044,0.0003452,3]
[310299630,1704463983206,-1954.72,0.0003452,3]
[310299631,1704463983220,-500.0,0.0003452,3]
[310299632,1704463983235,-500.0,0.0003452,3]
[310299633,1704463983250,-964.87,0.0003452,3]
[310299634,1704463983266,-500.0,0.0003452,3]
[310299635,1704463983282,-1145.56,0.0003452,3]
[310299636,1704463983298,-1200.04,0.0003452,3]
[310299637,1704463983313,-794.58,0.0003452,3]
[310299638,1704463983329,-855.41,0.0003452,3]
[310299639,1704463983342,-534.82,0.0003452,3]
[310299640,1704463983357,-773.85,0.0003452,3]
[310299641,1704463983371,-1238.16,0.0003452,3]
[310299642,1704463983388,-500.0,0.0003452,3]
[310299643,1704463983402,-3690.73,0.0003452,3]
[310299644,1704463983417,-500.0,0.0003452,3]
[310299645,1704463983432,-692.03,0.0003452,3]
[310299646,1704463983447,-559.53,0.0003452,3]
[310299647,1704463983463,-484.23179031,0.0003452,3]
[310299648,1704463983484,-500.0,0.0003452,3]
[310299649,1704463983499,-654.46,0.0003452,3]
[310299650,1704463983513,-500.0,0.0003452,3]
[310299651,1704463983528,-954.52,0.0003452,3]
[310299652,1704463983543,-763.63,0.0003452,3]
[310299653,1704463983558,-1216.82,0.0003452,3]
[310299654,1704463983573,-876.69,0.0003452,3]
[310299655,1704463983991,-511.23,0.0003452,3]
[310299656,1704463984017,-1777.29,0.0003452,3]
[310299657,1704463984027,-813.3,0.0003452,3]
[310299658,1704463984036,-1082.13,0.0003452,3]
[310299659,1704463984045,-677.81,0.0003452,3]
[310299660,1704463984055,-1325.23,0.0003452,3]
[310299661,1704463984065,-500.0,0.0003452,3]
[310299662,1704463984074,-3298.71,0.0003452,3]
[310299663,1704463984083,-500.0,0.0003452,3]
[310299664,1704463984093,-798.97,0.0003452,3]
[310299665,1704463984104,-500.0,0.0003452,3]
[310299666,1704463984114,-900.8,0.0003452,3]
[310299667,1704463984123,-500.0,0.0003452,3]
[310299668,1704463984133,-1067.2,0.0003452,3]
[310299669,1704463984142,-2016.59,0.0003452,3]
[310299670,1704463984150,-752.23,0.0003452,3]
[310299671,1704463984160,-811.52,0.0003452,3]
[310299672,1704463984169,-1251.67,0.0003452,3]
[310299673,1704463984178,-500.0,0.0003452,3]
[310299674,1704463984188,-8654.29,0.0003452,3]
[310299675,1704463984197,-909.25,0.0003452,3]
[310299676,1704463984207,-952.02,0.0003452,3]
[310299677,1704463984216,-963.43,0.0003452,3]
[310299678,1704463984225,-2290.16,0.0003452,3]
[310299679,1704463984234,-511.88,0.0003452,3]
[310299680,1704463984244,-1293.97,0.0003452,3]
[310299681,1704463984253,-5023.74,0.0003452,3]
[310299682,1704463984265,-960.97,0.0003452,3]
[310299683,1704463984274,-1316.73,0.0003452,3]
[310299684,1704463984284,-500.0,0.0003452,3]
[310299685,1704463984293,-2888.44,0.0003452,3]
[310299686,1704463984302,-780.49,0.0003452,3]
[310299687,1704463984312,-213.57,0.0003452,3]
[310299688,1704463984321,-873.53,0.0003452,3]
[310299689,1704463984331,-840.85,0.0003452,3]
[310299690,1704463984341,-500.0,0.0003452,3]
[310299691,1704463984352,-552.42,0.0003452,3]
[310299692,1704463984362,-17362.55,0.0003452,3]
[310299693,1704463984372,-4809.34,0.0003452,3]
[310299694,1704463984381,-2346.84,0.0003452,3]
[310299695,1704463984392,-619.58,0.0003452,3]
[310299696,1704463984401,-607.5,0.0003452,3]
[310299697,1704463984411,-539.06,0.0003452,3]
[310299698,1704463984421,-604.79712582,0.0003452,3]
[310299699,1704463984431,-9463.24,0.0003452,3]
[310299700,1704463984440,-4907.15,0.0003452,3]
[310299701,1704463984450,-500.0,0.0003452,3]
[310299702,1704463984459,-4324.26,0.0003452,3]
[310299703,1704463984469,-2724.92,0.0003452,3]
[310299704,1704463984478,-746.12,0.0003452,3]
[310299705,1704463984489,-845.63,0.0003452,3]
[310299706,1704463984498,-11882.1,0.0003452,3]
[310299707,1704463984508,-500.0,0.0003452,3]
[310299708,1704463984517,-602.48864328,0.0003452,3]
[310299709,1704463984527,-3292.08,0.0003452,3]
[310299710,1704463984537,-500.0,0.0003452,3]
[310299711,1704463984547,-644.83,0.0003452,3]
[310299712,1704463984557,-918.77,0.0003452,3]
[310299713,1704463984566,-500.0,0.0003452,3]
[310299714,1704463984576,-3344.35,0.0003452,3]
[310299715,1704463984586,-1395.08,0.0003452,3]
[310299716,1704463984596,-613.87,0.0003452,3]
[310299717,1704463984608,-1259.17,0.0003452,3]
[310299718,1704463984617,-2954.54,0.0003452,3]
[310299719,1704463984627,-737.12,0.0003452,3]
[310299720,1704463984636,-2366.41,0.0003452,3]
[310299721,1704463984646,-3361.08,0.0003452,3]
[310299722,1704463984655,-545.10594078,0.0003452,3]
[310299723,1704463984665,-1558.45,0.0003452,3]
[310299724,1704463984675,-1062.83,0.0003452,3]
[310299725,1704463984684,-5440.99,0.0003452,3]
[310299726,1704463984694,-812.59,0.0003452,3]
[310299727,1704463984703,-646.75,0.0003452,3]
[310299728,1704463984712,-1323.29,0.0003452,3]
[310299729,1704463984721,-16516.01,0.0003452,3]
[310299730,1704463984731,-747.13,0.0003452,3]
[310299731,1704463984741,-1218.24,0.0003452,3]
[310299732,1704463984751,-678.9,0.0003452,3]
[310299733,1704463984760,-8220.31,0.0003452,3]
[310299734,1704463984769,-509.33,0.0003452,3]
[310299735,1704463984779,-625.64,0.0003452,3]
[310299736,1704463984788,-1093.85,0.0003452,3]
[310299737,1704463984797,-1229.71,0.0003452,3]
[310299738,1704463984806,-528.93,0.0003452,3]
[310299739,1704463984816,-500.0,0.0003452,3]
[310299740,1704463984825,-500.0,0.0003452,3]
[310299741,1704463984834,-218.62,0.0003452,3]
[310299742,1704463984844,-696.27,0.0003452,3]
[310299743,1704463984857,-500.0,0.0003452,3]
[310299744,1704463984866,-500.0,0.0003452,3]
[310299745,1704463984876,-1228.93,0.0003452,3]
[310299746,1704463984885,-906.38,0.0003452,3]
[310299747,1704463984895,-1479.47,0.0003452,3]
[310299748,1704463984905,-500.0,0.0003452,3]
[310299749,1704463984914,-1060.36,0.0003452,3]
[310299750,1704463984924,-1559.68,0.0003452,3]
[310299751,1704463984934,-500.0,0.0003452,3]
[310299752,1704463984944,-1024.05,0.0003452,3]
[310299753,1704463984953,-535.98,0.0003452,3]
[310299754,1704463984963,-732.24,0.0003452,3]
[310299755,1704463984973,-20552.87,0.0003452,3]
[310299756,1704463984982,-764.89,0.0003452,3]
[310299757,1704463984991,-1384.47,0.0003452,3]
[310299758,1704463985001,-2343.7,0.0003452,3]
[310299759,1704463985011,-500.0,0.0003452,3]
[310299760,1704463985021,-855.82,0.0003452,3]
[310299761,1704463985031,-1443.03,0.0003452,3]
[310299762,1704463985042,-1467.75,0.0003452,3]
[310299763,1704463985051,-2427.76,0.0003452,3]
[310299764,1704463985061,-1262.81,0.0003452,3]
[310299765,1704463985071,-976.69,0.0003452,3]
[310299766,1704463985080,-1404.49,0.0003452,3]
[310299767,1704463985090,-963.68,0.0003452,3]
[310299768,1704463985103,-502.15,0.0003452,3]
[310299769,1704463985112,-1710.42,0.0003452,3]
[310299770,1704463985122,-1043.98,0.0003452,3]
[310299771,1704463985131,-500.0,0.0003452,3]
[310299772,1704463985140,-827.77,0.0003452,3]
[310299773,1704463985150,-670.86,0.0003452,3]
[310299774,1704463985160,-552.27,0.0003452,3]
[310299775,1704463985169,-2031.67,0.0003452,3]
[310299776,1704463985178,-593.61,0.0003452,3]
[310299777,1704463985187,-737.13,0.0003452,3]
[310299778,1704463985197,-7439.39,0.0003452,3]
[310299779,1704463985206,-973.07,0.0003452,3]
[310299780,1704463985215,-563.27,0.0003452,3]
[310299781,1704463985224,-585.98,0.0003452,3]
[310299782,1704463985234,-878.72,0.0003452,3]
[310299783,1704463985243,-1022.6,0.0003452,3]
[310299784,1704463985253,-1959.09,0.0003452,3]
[310299785,1704463985263,-732.57,0.0003452,3]
[310299786,1704463985272,-11053.17,0.0003452,3]
[310299787,1704463985281,-757.66,0.0003452,3]
[310299788,1704463985290,-500.0,0.0003452,3]
[310299789,1704463985299,-511.54,0.0003452,3]
[310299790,1704463985308,-1241.64,0.0003452,3]
[310299791,1704463985318,-3419.36,0.0003452,3]
[310299792,1704463985327,-1092.45,0.0003452,3]
[310299793,1704463985336,-2084.07,0.0003452,3]
[310299794,1704463985346,-558.28,0.0003452,3]
[310299795,1704463985358,-500.0,0.0003452,3]
[310299796,1704463985368,-1946.6,0.0003452,3]
[310299797,1704463985378,-150.98596813,0.0003452,3]
[310299798,1704463985387,-1013.42,0.0003452,3]
[310299799,1704463985397,-500.0,0.0003452,3]
[310299800,1704463985406,-1212.22,0.0003452,3]
[310299801,1704463985416,-2289.25,0.0003452,3]
[310299802,1704463985425,-500.0,0.0003452,3]
[310299803,1704463985435,-500.0,0.0003452,3]
[310299804,1704463985444,-2361.2,0.0003452,3]
[310299805,1704463985454,-1128.19,0.0003452,3]
[310299806,1704463985463,-702.4,0.0003452,3]
[310299807,1704463985473,-764.39,0.0003452,3]
[310299808,1704463985484,-500.0,0.0003452,3]
[310299809,1704463985494,-517.07,0.0003452,3]
[310299810,1704463985504,-1542.41,0.0003452,3]
[310299811,1704463985513,-1440.35,0.0003452,3]
[310299812,1704463985523,-715.0,0.0003452,3]
[310299813,1704463985532,-2358.36,0.0003452,3]
[310299814,1704463985541,-1017.07,0.0003452,3]
[310299815,1704463985551,-5040.24,0.0003452,3]
[310299816,1704463985560,-1054.48,0.0003452,3]
[310299817,1704463985570,-915.19,0.0003452,3]
[310299818,1704463985579,-8316.18,0.0003452,3]
[310299819,1704463985589,-1182.97,0.0003452,3]
[310299820,1704463985599,-5436.81,0.0003452,3]
[310299821,1704463985609,-409.62,0.00034521,2]
[310299822,1704463985619,-456.40105,0.00034588,3]
[310299823,1704463985628,-1000.0,0.00034644,7]
[310299824,1704463985638,-1000.0,0.00034644,7]
[310299825,1704463985649,-1000.0,0.00034644,7]
[310299826,1704463985660,-1000.0,0.00034644,7]
[310299827,1704463985672,-1000.0,0.00034644,7]
[310299828,1704463985682,-1000.0,0.00034644,7]
[310299829,1704463985692,-1000.0,0.00034644,7]
[310299830,1704463985702,-344.63414799,0.00034644,7]
[310299831,1704463985712,-349.2244279,0.00034644,7]
[310299832,1704463985722,-1000.0,0.00034644,7]
[310299833,1704463985732,-1000.0,0.00034644,7]
[310299834,1704463985743,-602.41062933,0.00034644,7]
[310299835,1704463985754,-1000.0,0.00034644,7]
[310299836,1704463985763,-1000.0,0.00034644,7]
[310299837,1704463985774,-1673.22491794,0.00034644,7]
[310299838,1704463985783,-492.69980751,0.00034644,7]
[310299839,1704463985793,-1376.22326318,0.00034644,7]
[310299840,1704463985803,-516.39965959,0.00034644,7]
[310299841,1704463985812,-204.95127295,0.00034644,7]
[310299842,1704463985822,-1000.0,0.00034644,7]
[310299843,1704463985832,-187.90900687,0.00034644,3]
[310299844,1704463985842,-1000.0,0.00034644,7]
[310299845,1704463985851,-6184.31913646,0.00034644,7]
[310299846,1704463985860,-1589.09024349,0.00034644,7]
[310299847,1704463985870,-1000.0,0.00034644,7]
[310299848,1704463985880,-153.25605674,0.00034644,3]
[310299849,1704463985890,-269.2708022,0.00034644,7]
[310299850,1704463985900,-289.83778049,0.00034644,7]
[310299851,1704463985909,-180.0,0.00034658,2]
[310299852,1704463985920,-157.62888482,0.000347,2]
[310299853,1704463985929,-153.84,0.00034703,2]
[310299854,1704463985938,-173.17,0.00034712,2]
[310299855,1704463985947,-1444.79,0.00034712,3]
[310299856,1704463985957,-947.41,0.00034712,3]
[310299857,1704463985966,-2917.19,0.00034712,3]
[310299858,1704463985975,-1039.42,0.00034712,3]
[310299859,1704463985985,-500.0,0.00034712,3]
[310299860,1704463985994,-588.09,0.00034712,3]
[310299861,1704463986004,-984.84,0.00034712,3]
[310299862,1704463986013,-1577.2,0.00034712,3]
[310299863,1704463986022,-1004.25,0.00034712,3]
[310299864,1704463986032,-941.19,0.00034712,3]
[310299865,1704463986042,-497.34723539,0.00034712,3]
[310299866,1704463986050,-587.5,0.00034712,3]
[310299867,1704463986060,-684.69,0.00034712,3]
[310299868,1704463986070,-500.0,0.00034712,3]
[310299869,1704463986080,-500.0,0.00034712,3]
[310299870,1704463986090,-502.66,0.00034712,3]
[310299871,1704463986101,-1249.93,0.00034712,3]
[310299872,1704463986111,-700.39,0.00034712,3]
[310299873,1704463986120,-960.04,0.00034712,3]
[310299874,1704463986129,-500.0,0.00034712,3]
[310299875,1704463986138,-537.41,0.00034712,3]
[310299876,1704463986148,-667.92,0.00034712,3]
[310299877,1704463986157,-510.05,0.00034712,3]
[310299878,1704463986167,-978.16,0.00034712,3]
[310299879,1704463986176,-500.0,0.00034712,3]
[310299880,1704463986186,-945.97,0.00034712,3]
[310299881,1704463986194,-1019.98,0.00034712,3]
[310299882,1704463986204,-500.0,0.00034712,3]
[310299883,1704463986213,-803.57,0.00034712,3]
[310299884,1704463986224,-889.76,0.00034712,3]
[310299885,1704463986233,-610.92,0.00034712,3]
[310299886,1704463986243,-605.09,0.00034712,3]
[310299887,1704463986253,-571.57,0.00034712,3]
[310299888,1704463986263,-500.0,0.00034712,3]
[310299889,1704463986272,-456.40105,0.00034788,3]
[310299890,1704463986282,-2444.817213,0.00034794,2]
[310299891,1704463986291,-24816.21212,0.00034794,2]
[310299892,1704463986301,-578.99,0.00034794,3]
[310299893,1704463986311,-570.77,0.00034794,3]
[310299894,1704463986321,-207.46823063,0.00034794,3]
[310299895,1704463986330,-500.0,0.00034794,3]
[310299896,1704463986340,-964.18,0.00034794,3]
[310299897,1704463986350,-500.0,0.00034794,3]
[310299898,1704463986361,-500.0,0.00034794,3]
[310299899,1704463986371,-776.92,0.00034794,3]
[310299900,1704463986380,-515.44115815,0.00034794,3]
[310299901,1704463986390,-500.0,0.00034794,3]
[310299902,1704463986400,-364.20273956,0.00034794,3]
[310299903,1704463986410,-754.78,0.00034794,3]
[310299904,1704463986420,-608.57,0.00034794,3]
[310299905,1704463986430,-574.49,0.00034794,2]
[310299906,1704463986441,-597.18,0.00034794,3]
[310299907,1704463986451,-535.87,0.00034794,3]
[310299908,1704463986461,-285.1322836,0.00034794,3]
[310299909,1704463986471,-847.71,0.00034794,3]
[310299910,1704463986481,-500.0,0.00034794,2]
[310299911,1704463986492,-275.88529586,0.00034794,3]
[310299912,1704463986503,-500.0,0.00034794,3]
[310299913,1704463986514,-939.06,0.00034794,3]
[310299914,1704463986526,-500.0,0.00034794,3]
[310299915,1704463986536,-617.42,0.00034794,3]
[310299916,1704463986546,-763.35,0.00034794,3]
[310299917,1704463986556,-500.0,0.00034794,3]
[310299918,1704463986566,-581.06,0.00034794,3]
[310299919,1704463986576,-533.25,0.00034794,3]
[310299920,1704463986586,-1032.57,0.00034794,3]
[310299921,1704463986596,-277.13726453,0.00034794,3]
[310299922,1704463987259,-526.58,0.00032602,2]
[310299923,1704463987269,-222.86273547,0.00034794,3]
[310299924,1704463987278,-668.81,0.00034794,3]
[310299925,1704463987288,-897.42,0.00034794,3]
[310299926,1704463987298,-610.9,0.00034794,3]
[310299927,1704463987307,-542.23,0.00034794,3]
[310299928,1704463987317,-500.0,0.00034794,3]
[310299929,1704463987326,-977.28,0.00034794,3]
[310299930,1704463987335,-295.56166124,0.00034794,3]
[310299931,1704463987345,-564.72,0.00034794,3]
[310299932,1704463987356,-623.13,0.00034794,3]
[310299933,1704463987366,-500.0,0.00034794,3]
[310299934,1704463987375,-660.13,0.00034794,3]
[310299935,1704463987385,-1107.9,0.00034794,3]
[310299936,1704463987395,-500.0,0.00034794,3]
[310299937,1704463987404,-500.0,0.00034794,3]
[310299938,1704463987414,-500.0,0.00034794,3]
[310299939,1704463987424,-500.0,0.00034794,3]
[310299940,1704463987433,-534.02,0.00034794,3]
[310299941,1704463987443,-1001.59,0.00034794,3]
[310299942,1704463987453,-500.0,0.00034794,3]
[310299943,1704463987463,-577.73,0.00034794,3]
[310299944,1704463987734,-500.0,0.00034794,3]
[310299945,1704463987745,-515.35,0.00034794,3]
[310299946,1704463987755,-528.01,0.00034794,3]
[310299947,1704463987765,-500.0,0.00034794,3]
[310299948,1704463987775,-609.91,0.00034794,3]
[310299949,1704463987784,-3164.14,0.00034794,3]
[310299950,1704463987794,-767.51,0.00034794,3]
[310299951,1704463987804,-572.23,0.00034794,3]
[310299952,1704463987814,-1043.05,0.00034794,3]
[310299953,1704463987824,-663.96,0.00034794,3]
[310299954,1704463987833,-199.02411443,0.00034794,3]
[310299955,1704463987844,-747.88681792,0.00034794,3]